bitfinex/quotes_ETHUSD_20260217
["timestamp","ask_amount","ask_price","bid_price","bid_amount"]
[1771340947078,0.5,1963.4,1962.2,6.91826904]
[1771340947280,0.5,1963.4,1961.8,6.91826904]
[1771340947470,0.5,1963.4,1961.9,3.670303]
[1771340947670,0.5,1963.4,1961.8,6.91826904]
[1771340947671,0.5,1964.0,1962.3,6.91826904]
[1771340948199,0.5,1964.0,1962.7,6.91826904]
[1771340948434,0.5,1964.9,1963.3,1.27336627]
[1771340948868,0.5,1964.9,1962.9,5.09346508]
[1771340948869,0.5,1964.5,1962.8,6.91826904]
[1771340949072,0.5,1964.5,1962.9,2.289399]
[1771340949371,0.5,1964.5,1962.5,1.27388535]
[1771340949372,0.5,1964.1,1962.5,1.27388535]
[1771340949904,0.5,1963.9,1962.4,1.27390489]
[1771340950073,0.5,1963.9,1962.2,2.089301]
[1771340950270,0.5,1963.9,1962.8,6.91826904]
[1771340950489,0.5,1964.5,1963.2,6.91826904]
[1771340950688,0.5,1964.5,1962.9,1.27362575]
[1771340950689,0.5,1964.5,1962.9,1.37602575]
[1771340950895,0.5,1964.5,1963.0,11.655288]
[1771340951115,0.5,1964.5,1963.0,0.1024]
[1771340951269,0.5,1964.5,1962.9,1.27362575]
[1771340951472,0.5,1964.1,1962.5,1.27388535]
[1771340952098,0.5,1964.1,1962.6,2.449]
[1771340952399,0.5,1964.1,1962.6,2.240277]
[1771340952581,0.5,1964.1,1962.5,1.27388535]
[1771340952582,0.5,1964.1,1962.9,7.37915]
[1771340952901,0.5,1964.0,1962.9,3.166069]
[1771340953103,0.5,1964.0,1962.8,1.27369064]
[1771340954014,0.5,1964.0,1962.7,1.27371723]
[1771340954188,0.5,1964.0,1961.8,6.85893718]
[1771340954189,17.505778,1963.7,1961.8,6.85893718]
[1771340954375,0.5,1963.4,1961.8,6.85893718]
[1771340954577,0.5,1963.4,1962.3,1.27401518]
[1771340955306,0.5,1963.3,1962.3,1.27401518]
[1771340956205,0.5,1963.8,1962.4,0.1024]
[1771340956507,0.5,1963.8,1962.4,10.111436]
[1771340956711,0.5,1963.8,1962.5,1.27388535]
[1771340956919,0.5,1963.7,1962.5,1.27388535]
[1771340957279,0.5,1963.7,1962.6,3.044779]
[1771340957480,0.001,1963.3,1962.8,6.85893718]
[1771340957699,0.001,1963.3,1962.5,1.27388535]
[1771340958582,0.501,1963.3,1961.9,1.27420998]
[1771340959111,0.5,1963.1,1961.9,1.27420998]
[1771340959292,0.5,1963.1,1962.0,6.271659]
[1771340959495,0.5,1963.1,1962.0,4.570065]
[1771340959791,0.5,1963.1,1962.0,3.584615]
[1771340959989,0.5,1963.1,1962.0,2.905806]
[1771340960196,0.5,1963.1,1962.2,6.85893718]
[1771340960398,0.5,1963.1,1962.0,9.39455]
[1771340960614,0.5,1963.1,1961.9,1.27420998]
[1771340961021,0.5,1963.7,1962.7,7.712439]
[1771340961320,0.5,1964.5,1962.7,1.27375554]
[1771340961528,0.18685624,1964.0,1962.4,1.27395026]
[1771340961739,0.5,1963.7,1962.4,1.27395026]
[1771340961913,0.5,1963.7,1962.5,5.842622]
[1771340962113,0.5,1963.7,1962.4,1.27395026]
[1771340962986,1.27317172,1963.6,1962.3,5.09502216]
[1771340963212,0.5,1963.5,1962.3,5.09502216]
[1771340963929,0.5,1963.5,1961.8,1.27433989]
[1771340964315,1.27317172,1963.6,1961.7,0.0011]
[1771340964316,0.5,1962.9,1961.7,0.0011]
[1771340964627,0.28925624,1963.2,1961.7,0.0011]
[1771340964628,0.5,1962.7,1961.7,1.27549342]
[1771340964998,0.5,1962.5,1961.7,0.0011]
[1771340965204,0.5,1962.5,1961.5,0.0011]
[1771340966243,1.27382044,1962.6,1961.5,0.0011]
[1771340966244,0.49945,1962.3,1961.5,0.0011]
[1771340967021,0.49945,1962.1,1961.5,0.0011]
[1771340968151,0.49945,1961.7,1959.7,6.85893718]
[1771340968336,0.49945,1961.7,1959.8,6.108798]
[1771340968506,0.49945,1961.5,1959.8,2.490817]
[1771340969107,1.77404977,1961.4,1959.9,1.27557528]
[1771340969431,1.77404977,1961.4,1960.1,6.85893718]
[1771340969432,0.49945,1961.4,1960.1,6.85893718]
[1771340970211,0.49945,1961.4,1961.3,0.0011]
[1771340970428,0.49945,1961.4,1959.9,1.27557528]
[1771340970937,0.49945,1961.2,1959.9,1.27557528]
[1771340971141,0.49945,1961.0,1959.7,5.10230113]
[1771340972944,0.49945,1961.0,1959.5,1.27583567]
[1771340973156,1.27492477,1960.9,1959.3,5.10334268]
[1771340973352,0.49945,1960.8,1959.3,5.10334268]
[1771340974455,0.49945,1960.8,1959.4,16.700619]
[1771340974755,0.49945,1961.4,1959.7,6.85893718]
[1771340975344,0.49945,1961.2,1959.8,1.27564037]
[1771340977263,1.27479475,1961.1,1959.8,1.27564037]
[1771340977483,1.77424475,1961.1,1959.8,1.27564037]
[1771340978127,5.07912047,1961.5,1960.0,6.86003718]
[1771340978332,2.598,1962.9,1961.2,12.59086218]
[1771340978526,6.60857275,1962.9,1961.6,6.85893718]
[1771340978724,0.49945,1962.7,1960.8,6.85893718]
[1771340978970,0.49945,1962.5,1960.9,4.71417]
[1771340979166,0.49945,1962.3,1960.5,0.1024]
[1771340979329,0.49945,1962.3,1960.7,1.27505482]
[1771340979330,0.49945,1962.1,1960.7,1.27505482]
[1771340979767,6.60857275,1962.0,1960.7,1.27505482]
[1771340981431,7.88278434,1962.0,1960.7,1.27505482]
[1771340981846,6.60857275,1962.0,1960.7,1.27505482]
[1771340982159,0.001,1961.2,1960.7,1.27505482]
[1771340982562,6.60957275,1961.2,1960.7,1.27505482]
[1771340982929,6.60957275,1961.2,1960.2,5.10126001]
[1771340983130,6.60957275,1961.2,1960.0,1.2755102]
[1771340983370,1.27485976,1961.0,1959.9,0.0011]
[1771340983739,6.60857275,1960.9,1959.9,0.0011]
[1771340984060,0.49945,1960.8,1959.9,0.0011]
[1771340984558,6.60857275,1960.7,1959.9,0.0011]
[1771340985464,7.88362991,1960.7,1959.9,0.0011]
[1771340985644,6.60857275,1960.6,1959.9,0.0011]
[1771340986535,7.10802275,1960.6,1959.9,0.0011]
[1771340987262,0.49945,1960.5,1959.9,0.0011]
[1771340987563,0.49945,1960.3,1959.6,0.0011]
[1771340988360,0.49945,1960.1,1959.1,1.27609616]
[1771340988864,0.49945,1959.9,1958.7,5.1054261]
[1771340989240,7.10692275,1959.8,1958.7,5.1054261]
[1771340989575,0.49945,1959.8,1958.7,5.1054261]
[1771340989963,1.77511361,1959.8,1958.6,8.13529394]
[1771340990166,6.60747275,1959.7,1958.6,1.27635676]
[1771340990364,0.49945,1959.6,1958.3,1.27661747]
[1771340990548,6.60747275,1959.5,1958.3,1.27661747]
[1771340990747,0.49945,1959.5,1958.3,1.27661747]
[1771340990961,1.27564474,1959.8,1958.3,1.27661747]
[1771340990962,7.10692275,1959.4,1958.3,1.27661747]
[1771340991167,0.49945,1959.4,1957.9,5.10749983]
[1771340991340,0.49945,1959.2,1957.9,5.10749983]
[1771340991541,1.7756113,1959.0,1957.5,5.1083276]
[1771340991847,0.49945,1958.9,1957.5,5.1083276]
[1771340992051,7.10692275,1958.9,1957.5,5.1083276]
[1771340992255,7.10692275,1958.9,1957.6,3.124792]
[1771340992438,7.10692275,1958.9,1957.6,5.019756]
[1771340992840,7.10692275,1958.9,1957.5,5.1083276]
[1771340993075,7.10692275,1958.9,1957.5,4.9307276]
[1771340993375,0.49945,1958.8,1957.5,4.9307276]
[1771340993873,6.60747275,1958.7,1957.5,4.9307276]
[1771340994174,6.60747275,1958.7,1957.7,0.0011]
[1771340994674,7.10692275,1958.7,1957.7,0.0011]
[1771340995367,0.49945,1958.7,1957.7,0.0011]
[1771340995572,6.60747275,1958.6,1957.7,0.0011]
[1771340996181,1.2764871,1958.5,1957.7,0.0011]
[1771340996575,6.60747275,1958.4,1957.7,0.0011]
[1771340998454,7.88404301,1958.4,1957.7,0.0011]
[1771340998861,6.60747275,1958.4,1957.7,0.0011]
[1771341000348,0.49945,1959.4,1958.1,6.85893718]
[1771341000962,0.49945,1959.9,1957.8,0.1035]
[1771341001149,0.49945,1959.5,1957.9,2.344964]
[1771341001350,6.85893718,1959.8,1957.7,0.0011]
[1771341001351,0.49945,1959.3,1957.7,0.0011]
[1771341002280,0.49945,1958.9,1957.7,0.0011]
[1771341003059,0.18685624,1959.5,1958.0,15.800888]
[1771341003060,1.77528567,1959.5,1958.0,15.800888]
[1771341003368,1.77528567,1959.5,1957.9,6.85893718]
[1771341003369,0.49945,1959.5,1958.3,6.85893718]
[1771341003571,0.49945,1959.5,1957.9,6.85893718]
[1771341003875,0.49945,1959.5,1958.0,14.643796]
[1771341004075,0.49945,1959.5,1958.0,13.108941]
[1771341004280,1.77532491,1959.5,1958.1,1.27674786]
[1771341004579,0.49945,1959.5,1958.2,5.576849]
[1771341004787,0.5,1961.5,1959.6,10.003424]
[1771341004970,0.5,1961.5,1961.2,2.29738223]
[1771341005171,1.77454555,1961.5,1961.1,2.29738223]
[1771341005371,0.5,1961.4,1960.6,1.3182973]
[1771341005847,5.09813917,1961.8,1959.9,6.85893718]
[1771341005848,0.5,1962.3,1961.0,1.3182973]
[1771341006052,0.5,1962.1,1961.2,1.3182973]
[1771341006248,0.5,1962.1,1959.9,6.85893718]
[1771341006249,0.5,1961.9,1961.0,1.3182973]
[1771341006880,0.5,1961.9,1960.6,1.3182973]
[1771341006881,0.5,1961.5,1960.6,1.3182973]
[1771341007050,0.5,1961.0,1959.1,6.85893718]
[1771341007258,0.5,1961.0,1959.5,6.85893718]
[1771341007474,0.5,1961.0,1959.3,8.14103]
[1771341007475,0.5,1963.1,1961.0,22.198879]
[1771341007810,1.77422083,1963.6,1962.4,6.85893718]
[1771341008109,1.77422083,1963.6,1962.0,6.85893718]
[1771341008110,0.5,1963.5,1962.0,6.85893718]
[1771341008413,1.27422083,1963.6,1962.4,6.85893718]
[1771341008414,0.001,1963.6,1962.4,6.85893718]
[1771341008730,0.001,1963.6,1962.8,6.85893718]
[1771341009107,0.001,1963.6,1962.1,1.27414504]
[1771341009108,1.77418122,1963.6,1962.1,1.27414504]
[1771341009297,0.5,1963.5,1962.1,1.27414504]
[1771341009604,0.5,1963.3,1961.7,1.27440485]
[1771341010318,0.5,1963.1,1961.7,1.27440485]
[1771341011112,0.5,1962.9,1961.4,1.27459977]
[1771341011478,0.5,1962.5,1961.3,1.27461644]
[1771341011813,1.56268737,1963.2,1961.4,2.150878]
[1771341011814,0.5,1963.1,1961.4,2.150878]
[1771341011977,0.5,1963.1,1961.6,6.85893718]
[1771341012380,0.5,1962.9,1961.6,0.1024]
[1771341012902,0.5,1962.9,1961.5,1.27453479]
[1771341013105,1.27422075,1963.6,1962.1,6.85893718]
[1771341013308,0.46217093,1963.3,1961.6,0.1024]
[1771341013507,0.46217093,1963.3,1961.7,3.086752]
[1771341013699,0.46217093,1963.1,1961.5,8.13347197]
[1771341013896,0.46217093,1963.1,1961.5,8.14121689]
[1771341014097,16.27099289,1966.7,1961.5,8.14121689]
[1771341014098,0.5,1965.3,1963.1,17.83277717]
[1771341014297,0.5,1965.3,1964.8,0.5]
[1771341014512,0.5,1965.2,1964.5,0.5]
[1771341014805,0.5,1965.0,1964.4,0.5]
[1771341015007,0.5,1965.0,1964.1,1.27283985]
[1771341015008,0.5,1965.0,1964.5,0.5]
[1771341015209,0.5,1965.0,1964.1,1.27283985]
[1771341015210,0.5,1965.7,1964.9,0.5]
[1771341015415,0.5,1965.5,1964.7,0.5]
[1771341015813,0.5,1965.5,1964.1,1.27283985]
[1771341015814,0.5,1965.5,1964.9,0.5]
[1771341016118,0.5,1965.5,1965.0,0.5]
[1771341016293,1.77194797,1965.5,1965.1,0.5]
[1771341016494,0.5,1965.4,1964.1,1.27284761]
[1771341017108,0.5,1965.2,1964.1,1.27284761]
[1771341017424,0.5,1965.7,1964.1,1.27284761]
[1771341017581,0.5,1965.5,1964.1,1.27284761]
[1771341017782,0.5,1965.3,1964.1,1.27284761]
[1771341018215,8.13842897,1965.8,1963.6,6.8666821]
[1771341018216,0.5,1965.1,1963.6,1.27317172]
[1771341018385,0.5,1964.8,1963.3,5.0926869]
[1771341019817,0.5,1964.6,1963.3,5.0926869]
[1771341020585,0.5,1964.5,1963.1,8.275906]
[1771341020813,0.5,1964.5,1963.0,5.09346508]
[1771341021314,0.5,1964.5,1962.9,5.09346508]
[1771341022386,0.001,1964.9,1963.7,6.8666821]
[1771341022387,6.622741,1964.8,1963.7,6.8666821]
[1771341022586,0.001,1964.9,1963.8,1.27304206]
[1771341023292,1.7733448,1964.9,1963.8,1.27304206]
[1771341023593,0.5,1964.8,1963.8,1.27304206]
[1771341024523,0.001,1964.9,1963.8,1.27304206]
[1771341024692,0.001,1964.9,1963.6,5.09216824]
[1771341024889,0.001,1964.9,1963.7,3.236052]
[1771341025328,0.001,1964.9,1963.7,10.1027341]
[1771341025539,0.501,1964.9,1963.6,5.09216824]
[1771341025830,0.501,1964.9,1963.5,5.09216824]
[1771341026187,0.5,1964.7,1963.2,1.27343113]
[1771341026387,0.5,1964.5,1963.2,1.27343113]
[1771341026686,0.5,1964.3,1962.6,14.01414738]
[1771341026886,0.5,1964.3,1962.7,2.143287]
[1771341027485,0.5,1964.3,1962.8,0.1024]
[1771341027689,0.5,1964.8,1963.3,6.394528]
[1771341027924,0.5,1964.8,1963.2,6.8666821]
[1771341028123,0.5,1964.8,1963.3,2.174202]
[1771341028287,0.5,1964.8,1963.2,6.8666821]
[1771341028489,0.5,1964.8,1963.0,0.1024]
[1771341028700,0.5,1964.6,1963.1,1.273496]
[1771341028923,0.5,1964.4,1963.1,1.273496]
[1771341030712,1.27271801,1964.3,1962.9,5.093984]
[1771341030915,0.5,1964.2,1962.9,5.093984]
[1771341031212,0.5,1964.0,1963.2,0.001]
[1771341031817,0.5,1963.8,1963.0,0.001]
[1771341032126,0.5,1963.6,1963.0,0.001]
[1771341032696,1.27323656,1963.5,1963.0,0.001]
[1771341033109,0.5,1963.4,1963.0,0.001]
[1771341033329,0.5,1963.4,1962.1,1.27414504]
[1771341033826,1.27322119,1963.6,1962.1,1.27414504]
[1771341034924,0.4995,1963.7,1962.1,1.27414504]
[1771341035830,0.4995,1963.5,1962.1,1.27414504]
[1771341036132,0.4995,1963.3,1962.1,1.27414504]
[1771341036497,0.4995,1963.1,1961.6,1.27440485]
[1771341037016,1.77306087,1963.0,1961.5,5.0980342]
[1771341037327,0.4995,1962.9,1961.5,5.0980342]
[1771341037631,0.4995,1962.9,1961.4,5.09761941]
[1771341038753,0.4995,1962.7,1961.4,5.09761941]
[1771341039292,0.4995,1962.5,1961.0,5.0983991]
[1771341040045,0.4995,1962.5,1960.9,8.14160687]
[1771341040400,0.4995,1962.5,1960.9,1.27492477]
[1771341041035,7.3661821,1962.3,1960.9,1.27492477]
[1771341041199,1.27427493,1961.9,1960.4,0.0011]
[1771341041526,0.4995,1961.8,1960.4,0.0011]
[1771341043398,1.77390485,1961.7,1960.4,0.0011]
[1771341044423,0.4995,1961.6,1960.4,0.0011]
[1771341045543,0.4995,1961.4,1960.5,0.0011]
[1771341046434,1.27453479,1961.5,1960.4,0.0011]
[1771341046435,0.4995,1961.2,1960.4,0.0011]
[1771341046635,0.4995,1961.2,1960.3,0.0011]
[1771341047332,8.14121689,1961.5,1960.1,0.0011]
[1771341047333,0.49895,1961.0,1960.1,0.0011]
[1771341047529,0.49895,1960.8,1960.1,0.0011]
[1771341047917,1.27492477,1960.9,1959.1,5.10421618]
[1771341047918,0.49895,1960.6,1959.1,5.10421618]
[1771341048309,1.37732477,1960.9,1958.7,5.10438466]
[1771341048310,12.805138,1960.3,1958.7,1.27635676]
[1771341048634,0.28925624,1960.5,1958.7,1.27635676]
[1771341048635,0.49895,1960.2,1958.7,1.27635676]
[1771341048836,0.49895,1960.2,1958.8,6.591008]
[1771341049040,0.49895,1960.2,1958.8,4.55354]
[1771341049238,0.49895,1960.8,1959.1,14.228675]
[1771341049415,1.77397657,1960.8,1959.5,1.27583567]
[1771341049611,0.49895,1960.8,1959.5,1.27583567]
[1771341049838,1.7739469,1960.8,1959.5,1.27583567]
[1771341050839,0.49895,1960.8,1959.5,1.27583567]
[1771341051037,1.77396792,1960.8,1959.5,1.15343567]
[1771341051412,1.27484271,1961.1,1959.3,5.10334268]
[1771341051614,1.27484271,1961.1,1959.4,0.1024]
[1771341051810,1.77379271,1961.1,1959.4,0.1024]
[1771341052337,1.77379271,1961.1,1959.5,7.577593]
[1771341052741,0.49895,1961.0,1959.3,3.25394]
[1771341053642,1.77387477,1960.9,1959.4,1.27590078]
[1771341053838,0.49895,1960.8,1959.4,1.27590078]
[1771341054742,0.49895,1960.6,1959.4,1.27590078]
[1771341054931,0.49895,1960.4,1958.9,5.10438466]
[1771341055136,0.49895,1960.3,1958.9,5.10438466]
[1771341055836,1.77426746,1960.3,1959.0,9.021865]
[1771341056012,1.77426746,1960.3,1958.9,5.10438466]
[1771341056217,0.49895,1960.2,1958.9,5.10438466]
[1771341057520,1.2751849,1960.5,1958.9,5.10438466]
[1771341058246,1.27508656,1960.7,1959.2,6.8666821]
[1771341058448,1.77380976,1961.0,1959.2,6.8666821]
[1771341058617,0.1024,1960.9,1959.2,6.8666821]
[1771341059347,0.49895,1960.7,1959.2,6.8666821]
[1771341059842,1.27511986,1960.6,1959.3,1.2759659]
[1771341060228,1.77406986,1960.6,1959.3,1.2759659]
[1771341060957,0.49895,1960.5,1959.3,1.2759659]
[1771341061125,0.49895,1960.3,1959.1,1.27609616]
[1771341061325,0.49895,1960.1,1959.0,0.0011]
[1771341061748,0.49895,1959.9,1959.0,0.0011]
[1771341061948,0.49895,1959.9,1958.9,0.0011]
[1771341061949,0.49895,1959.7,1958.9,0.0011]
[1771341062118,1.27564037,1959.8,1958.9,0.0011]
[1771341062323,5.10206657,1960.0,1958.9,0.0011]
[1771341062737,1.2755102,1960.0,1958.9,0.0011]
[1771341063069,0.49895,1960.5,1959.0,2.574857]
[1771341063352,1.2749898,1960.8,1959.0,0.0021]
[1771341063558,1.2749898,1960.8,1959.2,6.8666821]
[1771341063723,0.49895,1960.9,1959.3,6.26745]
[1771341063923,0.001,1961.0,1959.6,6.8666821]
[1771341064347,0.001,1961.0,1960.0,6.8666821]
[1771341064758,0.001,1961.0,1960.2,2.1992]
[1771341064930,0.001,1961.0,1960.1,0.0021]
[1771341065131,0.49895,1961.8,1960.2,6.8687821]
[1771341065532,1.27430963,1961.9,1960.3,0.0021]
[1771341065847,1.77335485,1961.7,1959.6,5.10289317]
[1771341066035,0.49895,1961.3,1959.6,5.10289317]
[1771341066226,0.49895,1961.1,1959.6,5.10289317]
[1771341066427,0.49895,1960.9,1959.6,5.10289317]
[1771341067554,0.49895,1960.9,1959.2,1.27603103]
[1771341067762,0.49895,1960.7,1959.2,1.27603103]
[1771341068067,0.49895,1960.7,1959.1,5.10412413]
[1771341068068,0.49895,1960.5,1959.1,5.10412413]
[1771341068368,1.27511986,1960.6,1959.0,1.2761613]
[1771341068573,1.27511986,1960.6,1959.1,6.539988]
[1771341068881,1.27511986,1960.6,1959.1,5.480988]
[1771341069167,0.49895,1960.5,1959.0,8.1428434]
[1771341069369,0.49895,1960.5,1959.0,1.2761613]
[1771341069741,0.49895,1960.5,1959.0,8.1428434]
[1771341070064,1.27524994,1960.4,1959.0,8.1428434]
[1771341070267,1.27524994,1960.4,1959.0,1.2761613]
[1771341070467,1.77419994,1960.4,1959.0,1.2761613]
[1771341071041,0.49895,1960.2,1959.0,1.2761613]
[1771341071242,0.49895,1961.6,1960.3,4.101365]
[1771341071551,0.49895,1961.2,1960.3,4.101365]
[1771341071854,0.49895,1960.3,1959.0,1.2761613]
[1771341072075,0.49895,1960.0,1958.9,0.0011]
[1771341072298,0.49895,1960.5,1958.9,0.0011]
[1771341072443,1.77418664,1960.5,1959.6,0.0011]
[1771341072790,1.27519464,1960.5,1959.6,0.0011]
[1771341073082,1.77414464,1960.5,1959.6,0.0011]
[1771341073784,0.1024,1960.8,1959.6,0.0011]
[1771341074075,1.77387477,1960.9,1959.6,0.0011]
[1771341074746,11.857703,1960.7,1959.6,0.0011]
[1771341074947,0.49895,1960.7,1959.6,0.0011]
[1771341075163,0.49895,1960.6,1959.6,0.0011]
[1771341076251,1.2751849,1960.5,1959.6,0.0011]
[1771341076450,1.77412176,1960.6,1959.6,0.0011]
[1771341076670,1.27492477,1960.9,1959.6,0.0011]
[1771341076853,8.324301,1960.8,1959.6,0.0011]
[1771341077051,1.77387477,1960.9,1959.6,0.0011]
[1771341077249,12.080845,1960.7,1959.6,0.0011]
[1771341077462,0.49895,1960.4,1959.6,0.0011]
[1771341077662,0.60135,1960.7,1959.5,0.0011]
[1771341078075,0.49895,1960.7,1959.5,0.0011]
[1771341078387,5.09969911,1961.1,1959.5,0.0011]
[1771341078388,1.87616165,1961.1,1959.5,0.0011]
[1771341078557,5.829133,1961.0,1959.5,0.0011]
[1771341078751,0.49895,1960.7,1959.5,0.0011]
[1771341079362,3.002456,1960.6,1959.5,0.0011]
[1771341079559,0.49895,1960.7,1959.5,0.0011]
[1771341079759,1.87616165,1961.1,1959.5,0.0011]
[1771341080062,3.779815,1961.0,1959.5,0.0011]
[1771341080379,3.467376,1961.0,1959.5,0.0011]
[1771341080557,2.32394,1961.0,1959.5,0.0011]
[1771341080754,1.77376165,1961.1,1959.5,0.0011]
[1771341080979,1.37706476,1961.3,1959.6,0.0021]
[1771341081186,2.821593,1961.2,1959.6,0.0021]
[1771341081383,11.644803,1961.0,1959.5,0.0011]
[1771341081620,6.57094,1960.8,1959.5,0.0011]
[1771341081756,0.49895,1960.7,1959.5,0.0011]
[1771341081954,0.49895,1960.4,1959.5,0.0011]
[1771341082154,1.27505482,1960.7,1959.5,0.0011]
[1771341082381,1.77394521,1960.8,1959.5,0.0011]
[1771341082781,1.77394153,1960.8,1959.5,0.0011]
[1771341083089,0.49895,1960.7,1959.5,0.0011]
[1771341083288,12.365426,1960.6,1959.5,0.0011]
[1771341083489,0.49895,1960.6,1959.5,0.0011]
[1771341083823,0.49895,1960.4,1959.5,0.0011]
[1771341084212,0.49895,1960.4,1958.9,1.2772613]
[1771341084213,0.49895,1960.2,1958.9,1.2772613]
[1771341084400,0.49895,1960.0,1958.9,1.2772613]
[1771341084608,0.49895,1959.9,1958.9,0.0011]
[1771341084778,0.49895,1959.7,1958.9,0.0011]
[1771341085486,0.49895,1959.7,1959.2,0.0011]
[1771341086479,1.27577056,1959.6,1959.2,0.0011]
[1771341086804,0.1024,1959.9,1959.2,0.0011]
[1771341087109,5.14778,1959.8,1959.2,0.0011]
[1771341087311,0.49895,1959.8,1959.2,0.0011]
[1771341088513,5.10190437,1960.1,1959.2,0.0011]
[1771341088682,5.89789,1960.0,1959.2,0.0011]
[1771341088888,9.520651,1959.8,1959.2,0.0011]
[1771341089215,12.175735,1959.7,1959.2,0.0011]
[1771341089581,0.49895,1959.6,1959.2,0.0011]
[1771341089977,0.1024,1959.9,1959.2,0.0011]
[1771341090223,4.59383,1959.7,1959.2,0.0011]
[1771341090381,0.49895,1960.0,1959.2,0.0011]
[1771341090581,0.49895,1959.8,1959.2,0.0011]
[1771341091012,2.054079,1959.7,1959.2,0.0011]
[1771341091349,0.49895,1960.2,1959.2,0.0011]
[1771341091682,10.078045,1960.1,1959.2,0.0011]
[1771341091926,0.49895,1960.0,1959.2,0.0011]
[1771341092593,1.27557528,1959.9,1959.2,0.0011]
[1771341092793,1.77451382,1960.0,1959.2,0.0011]
[1771341093011,4.205775,1960.3,1959.2,0.0011]
[1771341093514,14.370275,1960.2,1959.2,0.0011]
[1771341093692,10.503661,1960.1,1959.2,0.0011]
[1771341093886,0.49895,1960.1,1959.2,0.0011]
[1771341094213,9.198466,1960.0,1959.2,0.0011]
[1771341094387,9.652331,1959.9,1959.2,0.0011]
[1771341094581,1.27564037,1959.8,1959.2,0.0011]
[1771341095119,1.77447887,1960.0,1959.2,0.0011]
[1771341095418,1.27552887,1960.0,1959.2,0.0011]
[1771341096496,0.49895,1960.2,1959.2,0.0011]
[1771341096699,3.147436,1960.1,1959.2,0.0011]
[1771341097103,0.49895,1960.2,1959.2,0.0011]
[1771341097314,4.75391,1960.1,1959.2,0.0011]
[1771341097516,5.25286,1960.1,1959.3,0.0011]
[1771341097816,5.288341,1959.9,1959.3,0.0011]
[1771341098107,0.49895,1959.9,1959.3,0.0011]
[1771341098890,1.27564037,1959.8,1959.3,0.0011]
[1771341099902,10.165404,1959.7,1959.3,0.0011]
[1771341100119,8.020054,1959.7,1959.3,0.0011]
[1771341100933,8.020054,1959.7,1958.7,0.0011]
[1771341100934,7.363469,1959.5,1958.7,0.0011]
[1771341101242,0.49895,1959.5,1958.7,0.0011]
[1771341101462,1.27577056,1959.6,1958.7,0.0011]
[1771341102333,11.369439,1959.3,1958.2,5.10599062]
[1771341102914,11.369439,1959.3,1958.1,1.27668266]
[1771341102915,1.27600534,1959.3,1958.1,6.88624616]
[1771341103215,5.10326952,1959.6,1958.2,0.0021]
[1771341103216,3.416255,1959.6,1958.2,0.0021]
[1771341103419,5.10283463,1959.7,1957.8,0.0021]
[1771341103420,15.000503,1959.3,1957.8,0.0021]
[1771341103623,0.49895,1959.0,1957.7,0.0011]
[1771341103912,0.49895,1959.3,1957.8,0.0021]
[1771341104114,0.49895,1959.3,1957.7,0.0011]
[1771341104115,0.49895,1959.3,1957.9,6.88834616]
[1771341104312,5.10283463,1959.7,1957.9,6.88834616]
[1771341104313,5.60178463,1959.7,1958.0,0.0021]
[1771341104542,3.256614,1959.6,1958.0,0.0021]
[1771341104757,5.60178463,1959.7,1958.0,0.0021]
[1771341105061,1.27583567,1959.5,1958.0,1.27891307]
[1771341105265,1.27581636,1959.6,1958.1,0.0021]
[1771341105438,8.565703,1959.5,1958.1,0.0021]
[1771341105736,0.49895,1959.5,1958.0,1.27891307]
[1771341106110,0.49895,1959.4,1958.0,1.27681307]
[1771341106341,4.307275,1959.2,1958.0,1.27681307]
[1771341106516,2.174401,1959.2,1958.0,1.27681307]
[1771341106912,0.49895,1959.2,1958.0,1.27681307]
[1771341107140,1.27609616,1959.1,1957.8,0.0021]
[1771341107442,1.2759659,1959.4,1957.9,0.0021]
[1771341107652,0.49895,1959.2,1957.7,0.0011]
[1771341107845,0.49895,1958.8,1957.7,0.0011]
[1771341108140,5.396623,1958.7,1957.7,0.0011]
[1771341108343,0.1024,1959.3,1957.7,0.0011]
[1771341108514,0.49895,1959.2,1957.8,6.88624616]
[1771341109125,0.49895,1959.2,1957.7,0.0032]
[1771341109126,1.27609616,1959.1,1957.7,0.0032]
[1771341110554,1.27609616,1959.1,1957.9,0.0011]
[1771341110754,1.77504616,1959.1,1957.9,0.0011]
[1771341110955,5.10323146,1959.6,1957.9,0.0011]
[1771341110956,0.001,1960.7,1959.1,0.91771872]
[1771341111156,0.001,1960.6,1959.3,1.3783659]
[1771341111542,0.001,1960.7,1959.3,1.3783659]
[1771341111543,0.001,1960.5,1959.3,1.3783659]
[1771341111750,0.001,1960.6,1959.3,1.3783659]
[1771341112129,0.001,1960.5,1959.3,1.3783659]
[1771341112333,0.001,1960.6,1959.5,6.88624616]
[1771341112531,0.001,1960.7,1959.9,6.88624616]
[1771341112730,0.001,1960.7,1959.6,17.063875]
[1771341112931,0.001,1961.4,1960.0,14.720519]
[1771341113132,0.001,1961.4,1960.3,6.88624616]
[1771341114026,0.001,1961.3,1960.2,4.282547]
[1771341114680,0.001,1961.4,1960.2,4.282547]
[1771341114910,0.001,1961.3,1960.2,4.282547]
[1771341115277,0.001,1961.2,1960.3,1.275315]
[1771341115499,0.001,1961.3,1960.6,6.88624616]
[1771341115784,0.001,1961.2,1960.6,6.88624616]
[1771341115997,0.001,1961.3,1960.6,6.88624616]
[1771341116399,0.001,1961.4,1960.3,1.275315]
[1771341116400,0.001,1961.2,1960.3,8.16156116]
[1771341116586,0.501,1961.3,1960.3,1.275315]
[1771341117204,0.501,1961.3,1960.1,5.10126001]
[1771341117504,0.001,1961.2,1960.1,5.10126001]
[1771341117683,0.001,1961.3,1960.1,5.10126001]
[1771341118383,0.001,1961.2,1960.1,5.10126001]
[1771341118578,0.001,1961.3,1960.1,5.10126001]